bitfinex/quotes_SOLUSD_20251223
["timestamp","ask_amount","ask_price","bid_price","bid_amount"]
[1766516728516,173.34311107,124.44,124.33,4.71130221]
[1766516728517,0.66,124.45,124.4,10.43767296]
[1766516728723,0.66,124.45,124.4,15.14897517]
[1766516729100,0.66,124.45,124.41,4.71130221]
[1766516729419,0.66,124.45,124.4,15.14897517]
[1766516730221,0.66,124.45,124.41,8.03793907]
[1766516731022,40.15741707,124.51,124.41,8.03793907]
[1766516731023,0.1,124.57,124.44,15.80897517]
[1766516731222,4.71130221,124.5,124.44,15.14897517]
[1766516732321,4.71130221,124.5,124.45,8.03535556]
[1766516732627,18.4687578,124.52,124.45,32.83504668]
[1766516732922,19.39130221,124.51,124.46,4.71130221]
[1766516733100,0.66,124.5,124.45,32.83504668]
[1766516733416,5.37130221,124.5,124.45,32.83504668]
[1766516733617,0.67,124.49,124.45,32.83504668]
[1766516735327,0.67,124.49,124.45,28.12374447]
[1766516735630,0.67,124.49,124.45,32.83504668]
[1766516737345,0.67,124.49,124.46,4.71130221]
[1766516737503,0.67,124.49,124.45,28.12374447]
[1766516737702,0.72,124.48,124.44,12.74712039]
[1766516738597,0.72,124.54,124.48,0.66]
[1766516738801,0.72,124.54,124.5,4.71130221]
[1766516739025,0.72,124.54,124.51,8.03148341]
[1766516739622,0.72,124.54,124.5,4.71130221]
[1766516739802,0.72,124.54,124.5,12.74321078]
[1766516740126,0.72,124.54,124.5,8.03190857]
[1766516740709,0.72,124.54,124.5,12.74321078]
[1766516743115,0.72,124.53,124.5,4.71130221]
[1766516743708,0.72,124.53,124.49,12.74386984]
[1766516743911,0.72,124.53,124.5,4.71130221]
[1766516745725,0.72,124.53,124.48,0.66]
[1766516745933,0.72,124.52,124.49,4.71130221]
[1766516746109,0.72,124.52,124.5,4.71130221]
[1766516748421,0.72,124.52,124.47,0.80340644]
[1766516748422,0.72,124.51,124.47,0.80340644]
[1766516748623,8.03101561,124.52,124.45,0.66]
[1766516748624,0.72,124.49,124.45,0.66]
[1766516748816,0.72,124.49,124.47,4.71130221]
[1766516749218,0.72,124.49,124.44,8.03559769]
[1766516749422,0.72,124.49,124.46,4.71130221]
[1766516750634,8.75290907,124.49,124.46,4.71130221]
[1766516751614,8.03290907,124.49,124.44,0.66]
[1766516751822,0.72,124.48,124.43,0.66]
[1766516752028,23.41406443,124.47,124.42,8.69671206]
[1766516752635,0.72,124.46,124.44,4.71130221]
[1766516754637,0.72,124.46,124.43,4.71130221]
[1766516754837,0.72,124.46,124.44,4.71130221]
[1766516756932,8.75480181,124.46,124.43,4.71130221]
[1766516758047,0.72,124.45,124.41,8.03764814]
[1766516758345,0.72,124.45,124.43,4.71130221]
[1766516759343,23.41432616,124.47,124.44,4.71130221]
[1766516759547,0.72,124.46,124.44,4.71130221]
[1766516760550,0.72,124.5,124.45,4.71130221]
[1766516760847,15.38,124.49,124.45,4.71130221]
[1766516761348,14.66,124.49,124.45,4.71130221]
[1766516761665,0.72,124.48,124.45,4.71130221]
[1766516763353,22.69284919,124.49,124.46,0.66]
[1766516763553,22.69284919,124.49,124.46,5.37130221]
[1766516763756,23.41284919,124.49,124.46,4.71130221]
[1766516763953,23.41284919,124.49,124.46,1.88059084]
[1766516764249,23.41284919,124.49,124.45,10.5759013]
[1766516764454,23.41284919,124.49,124.45,2.54059084]
[1766516765152,22.69284919,124.49,124.45,1.88059084]
[1766516765353,0.72,124.48,124.42,8.03708486]
[1766516765556,0.72,124.47,124.43,1.88059084]
[1766516765757,15.4,124.46,124.42,1.88059084]
[1766516766147,14.68,124.46,124.42,1.88059084]
[1766516766339,0.72,124.45,124.42,1.88059084]
[1766516768654,0.72,124.45,124.42,8.03714295]
[1766516768957,0.72,124.45,124.42,9.91773379]
[1766516770252,23.43501429,124.46,124.42,10.57773379]
[1766516770854,22.71501429,124.46,124.39,10.43767296]
[1766516771055,0.72,124.45,124.42,1.88059084]
[1766516772658,0.72,124.44,124.4,8.69828514]
[1766516772859,44.68237999,124.46,124.41,2.54059084]
[1766516773044,0.72,124.45,124.41,0.66]
[1766516773244,0.72,124.45,124.41,2.54059084]
[1766516775750,44.68237999,124.46,124.42,2.54059084]
[1766516775751,15.4,124.46,124.42,2.54059084]
[1766516777554,15.4,124.46,124.43,0.66]
[1766516777757,14.68,124.45,124.43,0.66]
[1766516778767,14.68,124.45,124.42,10.97708799]
[1766516778974,14.68,124.45,124.42,8.69713351]
[1766516779175,14.68,124.45,124.42,3.59995448]
[1766516779352,14.68,124.45,124.42,8.03692986]
[1766516779548,0.72,124.48,124.44,2.93995448]
[1766516779749,14.68,124.48,124.44,2.93995448]
[1766516779950,15.4,124.48,124.44,2.93995448]
[1766516780780,0.72,124.51,124.46,2.93995448]
[1766516780963,0.72,124.49,124.45,2.93995448]
[1766516781160,15.4,124.49,124.45,2.93995448]
[1766516782064,15.4,124.49,124.46,2.93995448]
[1766516782257,14.68,124.49,124.46,2.93995448]
[1766516782481,14.68,124.49,124.47,2.93995448]
[1766516782681,15.4,124.51,124.47,2.93995448]
[1766516782863,0.72,124.5,124.47,2.93995448]
[1766516785189,14.68,124.51,124.48,10.97275847]
[1766516785483,15.4,124.53,124.49,2.93995448]
[1766516785867,17.61995448,124.53,124.48,10.97275847]
[1766516786066,0.72,124.52,124.48,10.97275847]
[1766516786788,8.75006671,124.54,124.49,2.93995448]
[1766516786966,14.68,124.53,124.49,2.93995448]
[1766516787160,25.65025,124.53,124.46,43.92495579]
[1766516787383,0.72,124.52,124.48,2.93995448]
[1766516787884,25.65025,124.53,124.46,10.97466442]
[1766516787885,0.72,124.5,124.46,10.97466442]
[1766516788080,15.4,124.5,124.46,10.97466442]
[1766516788883,14.68,124.5,124.46,10.97466442]
[1766516789085,0.72,124.49,124.46,10.97466442]
[1766516789478,0.72,124.49,124.45,21.41251041]
[1766516791893,0.72,124.48,124.45,10.97483745]
[1766516793166,0.72,124.48,124.44,8.03570797]
[1766516793374,0.66,124.46,124.43,2.93995448]
[1766516793595,2.93995448,124.5,124.45,10.97515967]
[1766516793596,0.66,124.49,124.45,10.97515967]
[1766516794680,0.66,124.49,124.46,2.93995448]
[1766516795580,0.66,124.49,124.43,28.12734694]
[1766516795771,0.66,124.49,124.46,2.93995448]
[1766516798203,0.66,124.49,124.45,10.97496373]
[1766516798702,8.03277382,124.49,124.45,10.97496373]
[1766516798883,0.67,124.48,124.45,8.03500925]
[1766516800006,3.60995448,124.48,124.44,8.03579921]
[1766516800305,0.67,124.47,124.44,8.03579921]
[1766516802099,2.93995448,124.45,124.42,18.47495884]
[1766516802278,0.67,124.44,124.41,8.03774439]
[1766516802481,14.66,124.48,124.43,13.37762744]
[1766516802796,15.33,124.48,124.45,2.93995448]
[1766516803104,15.33,124.48,124.44,2.93995448]
[1766516804082,15.33,124.48,124.44,10.97565978]
[1766516805505,10.43767296,124.54,124.44,10.97565978]
[1766516805840,0.67,124.55,124.52,2.93995448]
[1766516806130,0.77,124.57,124.54,7.1335292]
[1766516806286,0.1,124.57,124.54,7.1335292]
[1766516806486,0.1,124.57,124.54,4.19357472]
[1766516806688,0.1,124.57,124.55,2.93995448]
[1766516807680,0.67,124.56,124.54,4.19357472]
[1766516807881,3.60995448,124.55,124.5,3.61995448]
[1766516808098,2.93995448,124.53,124.48,11.65304855]
[1766516808289,2.93995448,124.51,124.46,3.61995448]
[1766516808606,2.93995448,124.51,124.47,10.43767296]
[1766516809013,2.93995448,124.51,124.46,3.61995448]
[1766516809189,15.33,124.52,124.46,22.09223167]
[1766516809390,2.93995448,124.5,124.46,8.71460423]
[1766516809591,3.60995448,124.51,124.46,11.65455871]
[1766516809991,8.70151089,124.51,124.46,16.35386066]
[1766516810185,7.63925643,124.5,124.46,16.35386066]
[1766516810523,7.63925643,124.5,124.46,8.71460423]
[1766516810692,7.63925643,124.5,124.46,16.35386066]
[1766516811317,8.03026056,124.53,124.46,35.76063552]
[1766516811520,15.66951699,124.53,124.47,0.68]
[1766516811819,8.30925643,124.51,124.47,0.68]
[1766516812205,0.67,124.51,124.47,0.68]
[1766516812410,8.70026056,124.53,124.47,0.68]
[1766516812608,7.63925643,124.52,124.48,0.68]
[1766516813008,8.30925643,124.52,124.48,0.68]
[1766516813808,31.00019854,124.52,124.48,0.68]
[1766516814302,0.67,124.51,124.46,11.11767296]
[1766516814507,7.63925643,124.5,124.46,11.11767296]
[1766516814719,27.71451199,124.52,124.46,26.7916362]
[1766516814894,27.71451199,124.52,124.47,7.63925643]
[1766516815097,15.27667238,124.52,124.47,16.35314018]
[1766516815297,30.32966315,124.53,124.48,7.63925643]
[1766516815523,7.63925643,124.52,124.47,16.35314018]
[1766516816300,15.67012338,124.52,124.47,8.71388375]
[1766516816500,15.67012338,124.52,124.47,16.35314018]
[1766516816925,8.03086695,124.52,124.48,0.68]
[1766516817096,8.03086695,124.52,124.48,8.31925643]
[1766516818204,15.74012338,124.52,124.48,0.68]
[1766516819427,8.10086695,124.52,124.48,0.68]
[1766516819730,15.74012338,124.52,124.48,0.68]
[1766516820599,0.07,124.52,124.48,0.68]
[1766516820804,7.70925643,124.52,124.48,0.68]
[1766516821125,7.63925643,124.5,124.46,41.45137923]
[1766516821430,7.70925643,124.5,124.46,11.11767296]
[1766516821630,7.70925643,124.5,124.46,0.68]
[1766516822721,7.70925643,124.5,124.46,8.71463413]
[1766516823534,0.07,124.48,124.43,31.01530474]
[1766516823731,7.70925643,124.48,124.44,0.68]
[1766516823932,7.63925643,124.47,124.43,23.3766298]
[1766516824119,7.70925643,124.48,124.43,31.01588623]
[1766516824318,7.70925643,124.48,124.43,23.3766298]
[1766516824703,15.74269664,124.48,124.44,0.68]
[1766516827927,7.70925643,124.47,124.42,19.16477403]
[1766516828108,7.70925643,124.47,124.43,0.69]
[1766516828510,15.67269664,124.48,124.43,8.32925643]
[1766516828711,15.74269664,124.48,124.43,8.32925643]
[1766516829538,15.74269664,124.48,124.43,16.36569056]
[1766516830136,15.67269664,124.48,124.43,0.69]
[1766516830444,7.70925643,124.47,124.43,0.69]
[1766516830818,7.63925643,124.47,124.42,18.76692939]
[1766516831024,28.11698776,124.48,124.42,11.12767296]
[1766516831025,7.70925643,124.46,124.42,11.12767296]
[1766516831230,7.70925643,124.46,124.42,0.69]
[1766516831430,7.70925643,124.45,124.41,0.69]
[1766516831612,15.74503272,124.45,124.41,0.69]
[1766516831813,7.63925643,124.44,124.4,11.12767296]
[1766516832012,11.04701766,124.45,124.4,19.16621107]
[1766516832421,11.04701766,124.45,124.4,22.10745244]
[1766516833419,11.04701766,124.45,124.4,11.66977948]
[1766516834330,2.94124137,124.44,124.4,8.72853811]
[1766516835512,10.9772477,124.44,124.4,8.72853811]
[1766516835838,2.94124137,124.44,124.4,8.72853811]
[1766516836655,8.10559562,124.45,124.4,8.72853811]
[1766516836814,11.04683699,124.45,124.41,3.63124137]
[1766516837320,11.04683699,124.45,124.41,0.69]
[1766516838019,9.98776412,124.45,124.41,0.69]
[1766516838917,1.8821685,124.44,124.41,0.69]
[1766516839436,9.98776412,124.45,124.41,0.69]
[1766516839829,0.07,124.45,124.41,0.69]
[1766516840030,1.9521685,124.45,124.41,0.69]
[1766516840341,1.8821685,124.44,124.41,0.69]
[1766516841753,9.91847863,124.44,124.39,16.5421685]
[1766516841940,9.91847863,124.44,124.38,10.43767296]
[1766516841941,0.07,124.42,124.38,13.00984146]
[1766516842132,1.9521685,124.42,124.38,0.69]
[1766516842636,1.8821685,124.43,124.39,8.03914585]
[1766516842829,1.8821685,124.43,124.39,8.72914585]
[1766516843266,0.07,124.42,124.38,8.72961096]
[1766516843566,0.07,124.42,124.38,10.61177946]
[1766516844157,9.91931758,124.43,124.38,9.92177946]
[1766516844360,9.98931758,124.43,124.39,0.69]
[1766516844657,1.8821685,124.42,124.39,0.69]
[1766516844955,0.07,124.42,124.35,0.69]
[1766516845141,1.8821685,124.41,124.37,0.69]
[1766516845345,1.8821685,124.41,124.37,2.5721685]
[1766516845958,9.92034468,124.41,124.37,0.69]
[1766516847337,1.8821685,124.4,124.37,0.69]
[1766516848156,1.8821685,124.4,124.35,0.69]
[1766516848157,1.8821685,124.38,124.35,0.69]
[1766516848345,1.8821685,124.37,124.35,0.69]
[1766516848535,0.07,124.39,124.35,0.69]
[1766516848536,1.8821685,124.38,124.35,8.73171426]
[1766516848933,1.8821685,124.38,124.35,0.69]
[1766516849853,1.8821685,124.37,124.34,0.69]
[1766516850246,1.8821685,124.37,124.34,8.73238988]
[1766516850760,1.8821685,124.37,124.34,0.69]
[1766516852377,9.9923802,124.38,124.34,0.69]
[1766516853562,1.8821685,124.37,124.34,0.69]
[1766516853942,1.9521685,124.38,124.34,0.69]
[1766516854670,1.8821685,124.37,124.34,0.69]
[1766516854837,28.13731006,124.39,124.33,10.63767296]
[1766516855157,28.13731006,124.39,124.34,0.68]
[1766516855158,1.8821685,124.37,124.34,0.68]
[1766516855734,9.92304012,124.37,124.34,0.68]
[1766516855937,9.99304012,124.37,124.34,0.68]
[1766516856138,8.11087162,124.37,124.34,0.68]
[1766516856472,9.99304012,124.37,124.34,0.68]
[1766516858260,0.07,124.46,124.4,0.68]
[1766516858566,1.9521685,124.45,124.41,1.8821685]
[1766516859252,8.03600128,124.44,124.41,1.8821685]
[1766516859765,8.03600128,124.44,124.4,2.5621685]
[1766516862870,1.9521685,124.45,124.4,10.60073129]
[1766516863164,8.10470994,124.46,124.42,1.8821685]
[1766516863372,9.98687844,124.46,124.41,2.5621685]
[1766516863749,1.8821685,124.45,124.41,2.5621685]
[1766516864272,9.91772418,124.45,124.41,2.5621685]
[1766516864471,9.91772418,124.45,124.41,0.68]
[1766516864656,9.91772418,124.45,124.41,2.5621685]
[1766516867271,9.98772418,124.45,124.41,0.68]
[1766516868474,9.91772418,124.45,124.4,1.8821685]
[1766516868650,1.8821685,124.41,124.37,0.68]
[1766516868850,1.8821685,124.41,124.37,1.8821685]
[1766516869168,1.8821685,124.41,124.38,0.68]
[1766516869361,9.92026419,124.41,124.38,0.68]
[1766516870669,8.03809569,124.41,124.38,0.68]
[1766516870860,8.03809569,124.41,124.38,11.11767296]
[1766516872874,8.03809569,124.41,124.38,0.68]
[1766516873063,8.03809569,124.41,124.38,11.11767296]
[1766516873967,8.10729303,124.42,124.38,12.99984146]
[1766516874174,9.98946153,124.42,124.38,12.99984146]
[1766516877578,8.03685324,124.43,124.39,2.5621685]
[1766516877784,8.03685324,124.43,124.4,0.68]
[1766516877958,24.66841581,124.44,124.4,0.68]
[1766516878767,1.9521685,124.43,124.39,2.5621685]
[1766516878966,1.9521685,124.43,124.39,0.68]
[1766516879463,0.07,124.43,124.39,0.68]
[1766516879664,9.98916898,124.43,124.39,0.68]
[1766516880984,1.8821685,124.42,124.38,10.43767296]
[1766516881168,8.03700048,124.43,124.35,2.68635024]
[1766516881169,1.9521685,124.41,124.37,0.68]
[1766516881484,1.9521685,124.41,124.37,8.72045941]
[1766516881679,1.9521685,124.41,124.38,0.68]
[1766516884481,9.99030444,124.41,124.38,0.68]
[1766516886301,8.10987779,124.38,124.33,0.2]
[1766516886470,0.07,124.37,124.33,0.2]
[1766516886670,1.8821685,124.36,124.33,0.88]
[1766516887176,8.03987779,124.38,124.33,18.6805538]
[1766516887383,9.92204629,124.38,124.34,1.8821685]
[1766516887585,9.99204629,124.38,124.34,0.66]
[1766516888895,1.8821685,124.37,124.34,0.66]
[1766516889094,1.8821685,124.37,124.33,0.86]
[1766516889095,1.8821685,124.36,124.33,0.86]
[1766516890393,9.92398595,124.35,124.33,0.86]
[1766516890695,9.92398595,124.35,124.32,0.2]
[1766516890696,9.99398595,124.35,124.32,0.2]
[1766516890999,1.9521685,124.34,124.32,0.2]
[1766516891176,1.8821685,124.33,124.32,0.2]
[1766516891377,1.8821685,124.33,124.32,1e-08]
[1766516891586,1.9521685,124.33,124.29,0.86]
[1766516891787,1.8821685,124.31,124.29,0.2]
[1766516891990,1.8821685,124.32,124.29,0.86]
[1766516892415,9.92629735,124.32,124.29,0.86]
[1766516893915,8.04412885,124.32,124.29,0.86]
[1766516894198,36.73604577,124.36,124.32,0.66]
[1766516894379,1.8821685,124.35,124.32,0.66]
[1766516895106,9.92415779,124.35,124.32,0.66]
[1766516895479,22.72146487,124.36,124.33,2.5421685]
[1766516895696,24.60363337,124.36,124.33,0.66]
[1766516899608,32.41870715,124.39,124.33,0.66]
[1766516899808,1.8821685,124.38,124.35,0.66]
[1766516900011,2.9439215,124.38,124.35,0.66]
[1766516900616,30.53653865,124.39,124.35,0.66]
[1766516900823,2.9439215,124.38,124.35,0.66]
[1766516901331,10.98394614,124.38,124.35,0.66]
[1766516901502,2.9439215,124.37,124.33,0.66]
[1766516901702,2.9439215,124.37,124.34,0.66]
[1766516903217,10.9846727,124.37,124.34,0.66]
[1766516903529,8.0407512,124.37,124.34,0.66]
[1766516904700,10.9846727,124.37,124.34,0.66]
[1766516906527,8.0407512,124.37,124.34,0.66]
[1766516906730,22.72004739,124.38,124.35,0.66]
[1766516907821,22.72004739,124.38,124.36,0.66]
[1766516912527,0.07,124.37,124.33,14.04159446]
[1766516912731,3.0139215,124.36,124.32,0.66]
[1766516912910,17.6939215,124.36,124.32,0.66]
[1766516913104,2.9439215,124.35,124.32,0.66]
[1766516913707,2.9439215,124.35,124.3,13.38159446]
[1766516914030,2.9439215,124.34,124.31,0.71]
[1766516914619,8.04251235,124.34,124.31,0.71]
[1766516915131,10.98643385,124.34,124.31,0.71]
[1766516917106,8.04181745,124.35,124.32,3.6539215]
[1766516917324,8.04181745,124.35,124.32,0.71]
[1766516917832,10.98573895,124.35,124.32,0.71]
[1766516918011,3.0139215,124.34,124.3,0.71]
[1766516918339,2.9439215,124.34,124.31,0.71]
[1766516918934,25.73573895,124.35,124.31,0.71]
[1766516920411,2.9439215,124.34,124.31,0.71]
[1766516920915,2.9439215,124.33,124.3,0.71]
[1766516921234,17.6239215,124.33,124.3,0.71]
[1766516921606,17.6239215,124.33,124.29,0.2]
[1766516921812,3.0139215,124.32,124.29,0.2]
[1766516922227,2.9439215,124.3,124.29,1e-08]
[1766516922543,10.98897379,124.3,124.29,1e-08]
[1766516924351,34.04552602,124.3,124.26,0.2]
[1766516924647,2.9439215,124.27,124.24,0.71]
[1766516924817,17.6239215,124.27,124.24,0.71]
[1766516925231,2.9439215,124.26,124.24,0.71]
[1766516925436,2.9439215,124.26,124.23,0.71]
[1766516925648,17.6239215,124.27,124.23,0.71]
[1766516926233,8.04764204,124.26,124.23,0.71]
[1766516927543,22.72764204,124.26,124.23,0.71]
[1766516930056,25.67156354,124.26,124.23,0.71]
[1766516930839,14.68,124.26,124.23,3.6539215]
[1766516931038,14.68,124.26,124.24,0.71]
[1766516931344,22.74727199,124.27,124.24,0.71]
[1766516932150,25.69119349,124.27,124.24,0.71]
[1766516932352,2.9439215,124.26,124.24,0.71]
[1766516932566,10.99216709,124.26,124.24,0.71]
[1766516934661,2.9439215,124.25,124.21,0.91]
[1766516934869,2.9439215,124.25,124.21,3.8539215]
[1766516935077,2.9439215,124.25,124.22,0.71]
[1766516936157,8.04893754,124.24,124.22,0.71]
[1766516936756,10.99285904,124.24,124.22,0.71]
[1766516936958,10.99285904,124.24,124.21,0.91]
[1766516937282,2.9439215,124.23,124.19,0.2]
[1766516937441,2.9439215,124.23,124.19,10.63767296]
[1766516938345,8.04970363,124.23,124.19,21.63364069]
[1766516938570,8.04970363,124.23,124.19,13.58159446]
[1766516939267,8.04970363,124.23,124.2,0.71]
[1766516940443,11.67362513,124.23,124.19,14.29159446]
[1766516940969,11.67362513,124.23,124.19,13.58159446]
[1766516941167,11.11767296,124.27,124.22,2.9439215]
[1766516941344,3.6239215,124.28,124.24,0.71]
[1766516942049,2.9439215,124.27,124.24,0.71]
[1766516943273,2.9439215,124.26,124.23,0.71]
[1766516943673,11.67131881,124.27,124.23,3.6539215]
[1766516944546,11.67131881,124.27,124.23,0.71]
[1766516944952,8.04739731,124.27,124.23,2.9439215]
[1766516945152,10.99131881,124.27,124.24,0.71]
[1766516945975,8.04739731,124.27,124.24,0.71]
[1766516947671,8.72664828,124.28,124.24,10.9928179]
[1766516947861,8.04664828,124.28,124.25,3.6539215]
[1766516948270,8.04664828,124.28,124.25,0.71]
[1766516948657,10.99056978,124.28,124.25,0.71]
[1766516949475,11.68056978,124.28,124.24,0.71]
[1766516950072,3.6339215,124.27,124.24,0.71]
[1766516950248,2.9439215,124.26,124.23,0.71]
[1766516951978,8.04764204,124.26,124.23,0.71]
[1766516952866,8.04722347,124.27,124.25,0.71]
[1766516953380,10.99114497,124.27,124.24,0.71]
[1766516953581,3.6339215,124.26,124.22,0.71]
[1766516954079,3.6339215,124.24,124.21,0.71]
[1766516955149,11.68335061,124.24,124.21,0.71]
[1766516958488,8.73942911,124.24,124.21,0.71]
[1766516961792,8.04942911,124.24,124.21,0.71]
[1766516964701,8.73942911,124.24,124.21,0.71]
[1766516965067,10.62769157,124.24,124.2,0.71]
[1766516966692,25.32769157,124.24,124.2,0.71]
[1766516968804,8.73975525,124.23,124.2,0.71]
[1766516972591,10.62801771,124.23,124.2,0.71]
[1766516972918,2.57826246,124.21,124.19,0.2]
[1766516973697,2.53826246,124.2,124.15,18.80084989]
[1766516974109,2.53826246,124.2,124.16,9.94233785]
[1766516974719,0.65,124.2,124.16,9.94233785]
[1766516974925,10.5899684,124.2,124.16,9.94233785]
[1766516975115,10.5899684,124.2,124.15,18.80084815]
[1766516975310,10.5899684,124.2,124.16,1.88826246]
[1766516975516,10.5899684,124.2,124.16,9.9422205]
[1766516975713,8.70170594,124.2,124.17,0.69]
[1766516975913,0.65,124.2,124.17,2.57826246]
[1766516976121,8.70188681,124.2,124.17,0.69]
[1766516976302,10.59014927,124.2,124.17,0.69]
[1766516976506,10.59014927,124.2,124.15,0.69]
[1766516976507,2.53826246,124.18,124.15,0.69]
[1766516976921,10.5913747,124.18,124.15,0.69]
[1766516977625,8.70311224,124.18,124.15,0.69]
[1766516978529,0.71,124.17,124.13,0.2]
[1766516978722,2.59826246,124.14,124.13,0.2]
[1766516978906,0.71,124.14,124.13,0.2]
[1766516979113,0.71,124.14,124.11,0.66]
[1766516979114,2.59826246,124.13,124.1,0.2]
[1766516979649,1.88826246,124.12,124.1,0.2]
[1766516979939,1.88826246,124.12,124.08,0.2]
[1766516979940,0.71,124.1,124.08,0.2]
[1766516980141,1.88826246,124.09,124.08,0.2]
[1766516980346,15.41,124.1,124.08,0.2]
[1766516980517,2.59826246,124.09,124.08,1e-08]
[1766516980701,0.71,124.09,124.08,1e-08]
[1766516981106,0.71,124.09,124.06,2.54826246]
[1766516981416,14.7,124.1,124.06,0.66]
[1766516981611,14.7,124.1,124.06,10.60873531]
[1766516981612,15.41,124.1,124.06,10.60873531]
[1766516981813,25.35642872,124.1,124.06,2.54826246]
[1766516982029,25.35642872,124.1,124.06,0.66]
[1766516982519,1.88826246,124.09,124.06,0.66]
[1766516982721,2.59826246,124.09,124.06,0.66]
[1766516982938,2.59826246,124.09,124.05,2.54826246]
[1766516983230,10.65699194,124.09,124.05,2.54826246]
[1766516983735,8.76872948,124.09,124.05,2.54826246]
[1766516983912,8.76872948,124.09,124.06,0.66]
[1766516984711,0.71,124.12,124.08,1.88826246]
[1766516984924,0.71,124.12,124.09,0.66]
[1766516985125,10.65520197,124.12,124.07,1.88826246]
[1766516985326,10.65520197,124.12,124.08,0.66]
[1766516986026,8.76693951,124.12,124.08,1.88826246]
[1766516986223,8.76693951,124.12,124.09,0.66]
[1766516986427,10.65520197,124.12,124.09,0.66]
[1766516987316,1.88826246,124.11,124.06,0.66]
[1766516987516,8.05693951,124.12,124.06,0.66]
[1766516987517,1.88826246,124.1,124.06,0.66]
[1766516987714,1.88826246,124.08,124.05,0.66]
[1766516988044,0.71,124.09,124.06,2.54826246]
[1766516988416,2.59826246,124.09,124.06,0.66]
[1766516988837,1.88826246,124.09,124.06,0.66]
[1766516989032,17.29826246,124.1,124.06,0.66]
[1766516989226,17.29826246,124.1,124.06,2.54826246]
[1766516990118,8.05866709,124.09,124.06,0.66]
[1766516990441,8.05866709,124.09,124.06,2.54826246]
[1766516990641,8.05866709,124.09,124.05,10.43767296]
[1766516990642,10.65692955,124.09,124.05,10.43767296]
[1766516990855,10.65692955,124.09,124.05,0.66]
[1766516991058,10.65692955,124.09,124.05,2.54826246]
[1766516991241,8.76866709,124.09,124.05,0.66]
[1766516991441,10.65692955,124.09,124.05,0.66]
[1766516992041,8.76866709,124.09,124.05,0.66]
[1766516992241,10.65692955,124.09,124.05,2.54826246]
[1766516992640,8.76866709,124.09,124.05,1.88826246]
[1766516992837,8.76866709,124.09,124.06,2.54826246]
[1766516993037,10.65692955,124.09,124.06,0.66]
[1766516993749,0.71,124.06,124.04,0.1]
[1766516994252,10.65917456,124.06,124.04,0.1]
[1766516995358,10.65917456,124.06,124.04,1e-08]
[1766516995661,8.7709121,124.06,124.04,1e-08]
[1766516997254,8.76887688,124.09,124.06,0.66]
[1766516997560,23.48887688,124.09,124.06,0.66]
[1766516998054,22.77887688,124.09,124.04,1e-08]
[1766516998255,2.59826246,124.08,124.04,0.66000001]
[1766516998458,2.59826246,124.08,124.04,2.54826247]
[1766516998654,8.05996614,124.07,124.04,2.54826247]
[1766516998854,8.05996614,124.07,124.04,0.66000001]
[1766516999362,0.71,124.06,124.04,1e-08]
[1766516999740,2.59826246,124.06,124.04,1e-08]
[1766517000936,0.71,124.06,124.04,1e-08]
[1766517001150,0.71,124.07,124.04,1e-08]
[1766517001359,2.59826246,124.07,124.04,1e-08]
[1766517002063,0.71,124.07,124.04,1e-08]
[1766517002465,0.71,124.06,124.04,1e-08]
[1766517002771,2.59826246,124.06,124.04,1e-08]
[1766517002950,10.65946178,124.06,124.04,1e-08]
[1766517003153,8.77119932,124.06,124.04,1e-08]
[1766517003764,10.65946178,124.06,124.04,1e-08]
[1766517003967,1.88826246,124.05,124.01,2.54826246]
[1766517004261,1.88826246,124.05,124.0,2.54826246]
[1766517004262,0.71,124.04,124.0,2.54826246]
[1766517004443,2.59826246,124.04,124.0,2.54826246]
[1766517004843,2.59826246,124.04,124.0,0.66]
[1766517005265,10.66026595,124.04,124.0,10.61275271]
[1766517005460,8.77200349,124.04,124.0,10.61275271]
[1766517005962,0.71,124.03,124.0,2.54826246]
[1766517006155,8.77200349,124.04,124.0,2.54826246]